bitfinex/quotes_SOLUSD_20240906
["timestamp","ask_amount","ask_price","bid_price","bid_amount"]
[1725652977125,45.0,125.18,125.09,30.06854968]
[1725652977324,45.0,125.18,125.1,1.59795021]
[1725652977498,7.9889,125.18,125.13,19.9785]
[1725652977706,52.9892,125.17,125.13,27.97]
[1725652978129,45.0,125.17,125.14,7.9905]
[1725652978313,7.9885,125.18,125.14,7.9905]
[1725652979527,45.0,125.17,125.11,7.9928]
[1725652979842,52.9895,125.17,125.12,7.9921]
[1725652980327,7.9898,125.16,125.12,7.9921]
[1725652980512,45.0,125.17,125.12,7.9921]
[1725652980513,52.9892,125.17,125.13,7.9915]
[1725652980840,52.9892,125.17,125.12,27.9723]
[1725652981140,7.9899,125.16,125.11,7.9925]
[1725652981444,45.0,125.15,125.11,7.9925]
[1725652981927,45.0,125.15,125.09,48.4549]
[1725652981928,45.0,125.15,125.09,19.9843]
[1725652982514,7.9915,125.14,125.09,27.9784]
[1725652982710,45.0,125.13,125.06,19.9892]
[1725652982926,7.9934,125.11,125.06,27.9849]
[1725652983231,45.0,125.13,125.05,7.9966]
[1725652983232,45.0,125.1,125.05,7.9966]
[1725652983407,45.0,125.1,125.03,19.994]
[1725652983607,7.9946,125.09,125.04,7.997]
[1725652983805,20.0157,125.13,125.01,7.9988]
[1725652983806,45.0,125.08,125.01,7.9988]
[1725652984109,45.0,125.08,124.98,21.549]
[1725652984110,7.9976,125.04,124.99,8.0]
[1725652984309,45.0,125.03,124.98,8.0011]
[1725652984537,45.0,125.03,124.99,8.0004]
[1725652985340,52.9982,125.03,124.97,28.0052]
[1725652985511,45.0,125.03,124.97,20.004]
[1725652985829,45.0,125.03,124.94,23.14909263]
[1725652986033,45.0,125.03,125.01,7.9993]
[1725652986242,2.13521376,125.05,125.0,7.9999]
[1725652986532,2.13521376,125.05,125.01,7.9991]
[1725652986533,47.13521376,125.05,125.01,7.9991]
[1725652986908,41.5652,125.09,125.01,19.997]
[1725652986909,7.9949,125.08,125.01,19.997]
[1725652987110,8.5125,125.11,125.01,19.997]
[1725652987308,20.0,125.1,125.01,19.997]
[1725652987538,7.9949,125.08,125.02,7.9981]
[1725652988115,7.9943,125.09,125.01,19.997]
[1725652988423,27.9937,125.1,125.03,19.9939]
[1725652988936,18.58891359,125.11,125.05,19.9906]
[1725652989340,2.08341359,125.11,125.05,19.9906]
[1725652989523,21.5792,125.13,125.05,19.9906]
[1725652989721,7.9928,125.12,125.07,7.9955]
[1725652989928,23.68712095,125.13,125.06,7.996]
[1725652989929,7.9929,125.11,125.06,7.996]
[1725652990814,7.9924,125.12,125.07,7.9953]
[1725652991211,31.67892095,125.13,125.08,7.9947]
[1725652991413,16.6258,125.15,125.1,7.993]
[1725652991715,7.9911,125.14,125.09,27.9788]
[1725652992235,7.9918,125.13,125.09,19.9847]
[1725652992834,7.9918,125.13,125.08,7.9943]
[1725652993039,7.9929,125.12,125.06,19.9897]
[1725652993214,10.80316788,125.15,125.06,19.9897]
[1725652993215,7.9918,125.13,125.06,19.9897]
[1725652993517,7.9918,125.13,125.08,7.9947]
[1725652993717,45.0,125.12,125.09,7.9941]
[1725652993926,45.0,125.12,125.1,7.9934]
[1725652994111,45.0,125.12,125.09,19.9852]
[1725652994112,18.79416788,125.15,125.09,19.9852]
[1725652994311,10.80316788,125.15,125.09,19.9852]
[1725652994515,2.16786788,125.15,125.11,7.9923]
[1725652994815,7.9902,125.16,125.12,7.9922]
[1725652995022,7.9911,125.14,125.08,19.9863]
[1725652995225,7.9924,125.12,125.08,19.9863]
[1725652995427,7.993,125.11,125.08,19.9863]
[1725652995847,45.0,125.1,125.08,19.9863]
[1725652996051,52.9929,125.11,125.07,7.9953]
[1725652996642,45.0,125.11,125.07,7.9953]
[1725652997132,7.9942,125.09,125.05,19.9909]
[1725652997328,45.0,125.08,125.05,19.9909]
[1725652997549,45.0,125.08,125.05,27.9876]
[1725652997844,45.0,125.08,125.05,19.9909]
[1725652998221,45.0,125.08,125.05,27.9876]
[1725652998747,45.0,125.09,125.05,27.9876]
[1725652998952,45.0,125.09,125.06,7.996]
[1725652999123,16.361,125.11,125.07,7.9954]
[1725652999323,2.09797421,125.13,125.07,19.9879]
[1725652999535,7.9927,125.12,125.07,27.9829]
[1725653000048,28.3459,125.14,125.04,19.9925]
[1725653000270,7.9943,125.09,125.05,7.9966]
[1725653000541,38.47274029,125.14,125.07,7.9951]
[1725653000743,45.0,125.13,125.06,27.9852]
[1725653001050,7.9934,125.11,125.06,27.9852]
[1725653001419,27.9925,125.12,125.06,19.9893]
[1725653001627,45.0,125.11,125.06,19.9893]
[1725653002036,10.49474029,125.14,125.08,19.9864]
[1725653002254,7.9915,125.14,125.09,7.994]
[1725653002549,41.035,125.17,125.1,27.9768]
[1725653002550,7.9906,125.15,125.1,27.9768]
[1725653002745,7.9906,125.15,125.11,7.9929]
[1725653003641,7.9912,125.14,125.1,27.9768]
[1725653003843,7.9899,125.16,125.11,7.9925]
[1725653004022,7.9905,125.15,125.11,7.9925]
[1725653004228,7.9914,125.14,125.1,27.9769]
[1725653005042,23.2236319,125.17,125.12,19.9805]
[1725653005242,7.987,125.21,125.15,7.9898]
[1725653005442,7.9876,125.2,125.15,7.9898]
[1725653006052,7.9876,125.2,125.16,7.9897]
[1725653006235,307.1,125.22,125.16,19.9734]
[1725653006560,7.9866,125.21,125.16,27.963]
[1725653006859,307.1,125.22,125.13,19.9784]
[1725653007026,317.60998426,125.22,125.13,19.9784]
[1725653007230,7.9895,125.17,125.13,19.9784]
[1725653007430,7.99,125.16,125.12,7.9922]
[1725653007747,30.47698426,125.21,125.16,7.9897]
[1725653007748,7.9873,125.2,125.16,7.9897]
[1725653008051,7.9876,125.2,125.15,7.9899]
[1725653008347,72.9878,125.19,125.14,27.9677]
[1725653008924,7.9866,125.21,125.16,7.9896]
[1725653009229,307.1,125.22,125.18,19.9706]
[1725653009847,307.1,125.22,125.15,19.9752]
[1725653010153,307.1,125.22,125.18,7.9884]
[1725653010356,2.15662697,125.25,125.18,7.9884]
[1725653010357,309.25662697,125.25,125.18,7.9884]
[1725653010532,16.5998,125.26,125.22,19.9646]
[1725653010729,16.5998,125.26,125.15,8.5442]
[1725653010730,7.9842,125.25,125.15,8.5442]
[1725653010935,18.72965505,125.26,125.2,7.987]
[1725653011170,7.9827,125.28,125.23,7.9852]
[1725653011362,8.0119,125.3,125.24,7.9843]
[1725653011539,39.7405,125.32,125.28,7.982]
[1725653011741,2.1502527,125.34,125.29,7.9814]
[1725653011930,2.1502527,125.34,125.28,19.9552]
[1725653011931,7.9782,125.35,125.3,7.9807]
[1725653012137,10.06725974,125.35,125.3,7.9807]
[1725653012451,14.85046654,125.35,125.29,7.9814]
[1725653012642,7.979,125.33,125.28,19.9552]
[1725653013031,7.979,125.33,125.22,48.6409]
[1725653013032,7.9804,125.31,125.25,7.9834]
[1725653013361,10.50998426,125.31,125.24,19.96]
[1725653013730,52.9814,125.3,125.24,27.9443]
[1725653013955,7.9815,125.29,125.24,27.9443]
[1725653014132,45.0,125.28,125.24,27.9443]
[1725653014326,307.1,125.31,125.24,19.96]
[1725653014529,65.0,125.3,125.24,19.96]
[1725653014746,45.0,125.3,125.24,19.96]
[1725653014947,45.0,125.3,125.26,7.9832]
[1725653015151,45.0,125.3,125.24,19.96]
[1725653015152,330.67713016,125.36,125.27,19.9565]
[1725653015459,337.5493967,125.36,125.22,39.9271]
[1725653015640,10.50998426,125.35,125.22,39.9271]
[1725653015955,7.9783,125.34,125.29,7.9814]
[1725653017245,7.9783,125.34,125.28,7.982]
[1725653017448,7.9783,125.34,125.29,7.9814]
[1725653018053,45.0,125.33,125.29,7.9814]
[1725653018356,45.0,125.33,125.28,7.982]
[1725653018357,52.979,125.33,125.28,7.982]
[1725653018560,52.979,125.33,125.22,39.9271]
[1725653018561,7.9801,125.32,125.26,7.9831]
[1725653018757,7.9801,125.32,125.24,19.9613]
[1725653018758,45.0,125.31,125.24,19.9613]
[1725653019273,52.9803,125.31,125.24,19.9613]
[1725653019774,307.1,125.3,125.21,19.966]
[1725653019949,45.0,125.29,125.21,19.966]
[1725653020144,45.0,125.29,125.23,19.9623]
[1725653020342,307.1,125.3,125.21,39.9298]
[1725653020546,307.1,125.3,125.25,19.959]
[1725653021195,303.07217733,125.3,125.25,19.959]
[1725653021852,7.9829,125.27,125.21,21.73616733]
[1725653022060,311.05297733,125.3,125.25,7.9835]
[1725653022264,303.07217733,125.3,125.26,7.9828]
[1725653022652,303.07217733,125.3,125.25,19.9591]
[1725653022653,7.9796,125.32,125.27,7.9821]
[1725653022972,7.9794,125.33,125.28,7.982]
[1725653023187,52.9796,125.32,125.28,7.982]
[1725653023749,52.9796,125.32,125.27,7.9826]
[1725653023961,22.04892071,125.35,125.27,7.9826]
[1725653023962,7.979,125.33,125.27,19.956]
[1725653024262,52.9797,125.32,125.27,27.9386]
[1725653024458,7.9804,125.31,125.27,19.956]
[1725653024651,45.0,125.3,125.27,19.956]
[1725653025655,52.9809,125.3,125.26,7.9832]
[1725653026279,7.9803,125.31,125.26,7.9832]
[1725653026986,7.9808,125.3,125.24,19.9607]
[1725653027147,19.9462,125.34,125.24,19.9607]
[1725653027351,19.9462,125.34,125.24,27.9451]
[1725653027352,65.0,125.33,125.24,27.9451]
[1725653028270,7.9822,125.28,125.24,27.9451]
[1725653028660,7.9817,125.29,125.24,27.9451]
[1725653029172,7.9817,125.29,125.25,7.9839]
[1725653029384,7.9809,125.3,125.24,19.9607]
[1725653029754,52.9817,125.29,125.24,19.9607]
[1725653030074,7.9821,125.28,125.24,19.9607]
[1725653030376,7.9821,125.28,125.24,27.9449]
[1725653030571,7.9821,125.28,125.24,27.9451]
[1725653030770,7.9828,125.27,125.23,7.985]
[1725653030977,7.9838,125.26,125.22,7.9857]
[1725653031170,7.984,125.25,125.21,29.72236733]
[1725653031369,7.9841,125.25,125.21,29.72236733]
[1725653031762,7.9833,125.27,125.22,7.9856]
[1725653032083,45.0,125.26,125.22,7.9856]
[1725653032486,7.9833,125.27,125.23,7.985]
[1725653033967,7.9822,125.28,125.24,7.9846]
[1725653034164,7.9815,125.29,125.25,7.9838]
[1725653035788,7.9815,125.29,125.25,9.67326002]
[1725653036486,7.981,125.3,125.25,29.63326002]
[1725653037879,45.0,125.31,125.25,29.63326002]
[1725653038267,7.981,125.3,125.25,29.63326002]
[1725653038980,52.9803,125.31,125.26,7.9832]
[1725653039691,45.0,125.31,125.27,7.9826]
[1725653039863,10.0599606,125.32,125.27,7.9826]
[1725653040387,299.87217733,125.34,125.3,7.9805]
[1725653040571,299.87217733,125.34,125.29,19.9528]
[1725653040572,299.87217733,125.34,125.33,7.9789]
[1725653040883,299.87217733,125.34,125.27,19.7958]
[1725653040884,20.7309,125.4,125.32,7.9793]
[1725653041191,7.9769,125.37,125.32,7.9793]
[1725653041762,303.9,125.38,125.33,7.9787]
[1725653041991,7.9756,125.39,125.33,7.9787]
[1725653042161,311.8757,125.38,125.33,7.9787]
[1725653042365,7.9765,125.37,125.32,27.9278]
[1725653042577,303.9,125.39,125.27,19.7958]
[1725653042860,39.8754,125.4,125.27,19.7958]
[1725653042861,303.9,125.38,125.27,19.7958]
[1725653043062,7.9812,125.3,125.24,1.68946002]
[1725653043277,19.9463,125.34,125.24,1.68946002]
[1725653043587,19.9463,125.34,125.25,30.34646002]
[1725653043588,65.0,125.33,125.25,30.34646002]
[1725653043985,7.9806,125.31,125.26,7.9832]
[1725653044369,72.979,125.33,125.28,7.982]
[1725653044564,65.0,125.33,125.27,19.9564]
[1725653044760,7.9796,125.32,125.27,27.9387]
[1725653044995,45.0,125.33,125.29,7.9814]
[1725653045164,7.9782,125.35,125.3,7.9808]
[1725653045370,20.0,125.34,125.3,7.9808]
[1725653045997,6.14586444,125.4,125.27,41.5077031]
[1725653046210,303.9,125.38,125.31,19.9498]
[1725653046492,303.9,125.4,125.32,9.71902455]
[1725653046867,7.9756,125.39,125.34,7.9782]
[1725653047064,7.9763,125.38,125.33,27.9254]
[1725653047494,7.9765,125.37,125.32,16.1029]
[1725653047694,38.56577957,125.41,125.31,19.9112]
[1725653047695,6.87067592,125.38,125.31,19.9112]
[1725653048072,7.9781,125.35,125.31,19.9112]
[1725653048299,7.9771,125.36,125.31,27.8913]
[1725653048685,7.9784,125.34,125.31,19.9112]
[1725653048884,7.9784,125.34,125.3,19.951]
[1725653049401,52.9778,125.35,125.3,27.9317]
[1725653050876,45.0,125.35,125.3,1.68946002]
[1725653051080,7.9784,125.34,125.3,1.68946002]
[1725653051798,10.10867638,125.37,125.32,7.9791]
[1725653052176,303.9,125.36,125.32,7.9791]
[1725653052572,303.9,125.36,125.33,7.9785]
[1725653052784,7.9759,125.38,125.34,7.9782]
[1725653052785,303.9,125.37,125.34,7.9782]
[1725653053380,303.9,125.36,125.34,7.9782]
[1725653053696,303.9,125.36,125.33,27.9257]
[1725653054072,303.9,125.36,125.3,21.64106002]
[1725653054278,45.0,125.35,125.3,21.64106002]
[1725653054584,45.0,125.35,125.3,1.68946002]
[1725653054995,7.9787,125.34,125.3,1.68946002]
[1725653055785,303.9,125.36,125.3,1.68946002]
[1725653055986,311.8771,125.36,125.31,7.9796]
[1725653056183,311.8771,125.36,125.32,7.9792]
[1725653056184,303.9,125.36,125.32,7.9792]
[1725653056498,303.9,125.36,125.33,7.9788]
[1725653056888,7.9759,125.38,125.34,7.9781]
[1725653057204,10.12224417,125.39,125.34,7.9781]
[1725653057504,10.12224417,125.39,125.33,19.9468]
[1725653057505,7.9744,125.4,125.35,7.9775]
[1725653057713,21.76733546,125.42,125.35,19.9436]
[1725653058003,7.9734,125.42,125.36,8.0846]
[1725653059309,7.9734,125.42,125.37,7.9758]
[1725653060011,7.9727,125.43,125.38,7.9755]
[1725653060174,7.9721,125.44,125.37,19.9404]
[1725653060601,7.9721,125.44,125.38,7.9757]
[1725653060904,19.9272,125.46,125.39,7.975]
[1725653060905,7.9714,125.45,125.39,7.975]
[1725653061074,7.9714,125.45,125.4,1.59454036]
[1725653061277,7.9714,125.45,125.39,7.975]
[1725653062915,7.9714,125.45,125.4,7.974]
[1725653063288,2.16380592,125.46,125.39,27.9116]
[1725653063289,7.9719,125.44,125.39,27.9116]
[1725653063800,7.9727,125.43,125.38,7.9752]
[1725653063996,2.16380592,125.46,125.36,28.026]
[1725653064197,7.9727,125.43,125.39,7.9751]
[1725653065294,7.9721,125.44,125.39,7.9746]
[1725653065810,7.9727,125.43,125.38,27.9145]
[1725653065985,7.9727,125.43,125.38,29.52245271]
[1725653067607,7.9732,125.42,125.38,29.52245271]
[1725653067809,7.9727,125.43,125.38,29.52245271]
[1725653069113,45.0,125.46,125.39,7.975]
[1725653069114,7.9721,125.44,125.39,7.975]
[1725653069314,7.9725,125.43,125.39,7.975]
[1725653069502,7.9721,125.44,125.39,7.9749]
[1725653070411,7.9727,125.43,125.39,7.9749]
[1725653071516,7.9727,125.43,125.38,29.52245271]
[1725653071842,45.0,125.46,125.38,1.60795271]
[1725653071843,7.9751,125.39,125.38,1.60795271]
[1725653073208,374.20367957,125.44,125.38,1.60795271]
[1725653073421,7.9746,125.4,125.38,1.60795271]
[1725653074723,7.9739,125.41,125.38,1.60795271]
[1725653077117,314.41077957,125.46,125.4,7.9744]
[1725653077118,7.9717,125.45,125.4,7.9744]
[1725653077309,10.47048799,125.47,125.39,21.53208338]
[1725653077628,7.972,125.44,125.39,27.9124]
[1725653078302,7.972,125.44,125.4,7.9743]
[1725653078501,7.972,125.44,125.39,27.9125]
[1725653078922,7.972,125.44,125.4,7.9744]
[1725653079221,7.972,125.44,125.4,9.56882254]
[1725653079424,7.972,125.44,125.4,7.9744]
[1725653079643,7.972,125.44,125.39,27.9567]
[1725653079997,7.9714,125.45,125.4,7.9744]
[1725653080931,7.9719,125.44,125.4,7.9744]
[1725653081114,7.9719,125.44,125.4,9.58235271]
[1725653081310,7.9714,125.45,125.4,9.58235271]
[1725653081616,7.9714,125.45,125.41,7.9738]
[1725653082110,7.9702,125.47,125.41,21.52842377]
[1725653082503,7.9692,125.49,125.44,7.9717]
[1725653083616,7.9695,125.48,125.44,7.9717]
[1725653083824,7.9695,125.48,125.43,27.9029]
[1725653087812,45.0,125.47,125.42,29.6427]
[1725653088138,7.9702,125.47,125.42,29.6427]
[1725653088510,7.9702,125.47,125.42,49.5755]
[1725653088709,21.9902144,125.51,125.44,19.9294]
[1725653088931,45.0,125.5,125.44,19.9294]
[1725653089134,19.9223,125.49,125.42,21.6696]
[1725653089307,45.0,125.48,125.42,21.6696]
[1725653089733,7.9701,125.47,125.42,29.6423]
[1725653089912,2.0703144,125.51,125.45,7.9708]
[1725653090123,7.9692,125.49,125.44,9.56565553]
[1725653091114,7.9694,125.48,125.44,9.56565553]
[1725653091809,7.9694,125.48,125.44,7.9717]
[1725653093214,7.9703,125.47,125.43,19.9309]
[1725653093733,7.9703,125.47,125.43,27.9034]
[1725653094231,7.9696,125.48,125.44,7.9717]
[1725653096431,7.9696,125.48,125.44,9.57965271]
[1725653096621,7.97,125.47,125.44,1.60795271]
[1725653098128,19.9187,125.51,125.44,1.60795271]
[1725653098333,7.971,125.46,125.44,1.60795271]
[1725653100538,303.9,125.51,125.44,1.60795271]
[1725653100842,7.9699,125.48,125.44,1.60795271]
[1725653101337,7.9699,125.48,125.44,9.57955271]
[1725653101720,7.9705,125.47,125.44,1.60795271]
[1725653102052,52.9705,125.47,125.44,1.60795271]
[1725653102341,7.9698,125.48,125.44,9.57975271]
[1725653103423,7.9701,125.47,125.44,1.60795271]
[1725653104445,19.9226,125.49,125.44,1.60795271]
[1725653104623,7.9702,125.47,125.44,1.60795271]
[1725653104960,2.0960098,125.53,125.45,8.002]
[1725653105121,7.9644,125.56,125.52,7.9665]
[1725653105581,7.9637,125.57,125.53,7.9659]
[1725653105846,16.5563,125.63,125.53,1.59301719]
[1725653106025,2.15757437,125.66,125.59,19.9049]
[1725653106219,7.9585,125.66,125.6,9.55356603]
[1725653106445,7.9576,125.67,125.61,1.59191239]
[1725653106637,23.81734004,125.69,125.63,7.9598]
[1725653106951,7.9566,125.69,125.63,7.9598]
[1725653107443,7.9573,125.67,125.62,19.9011]
[1725653107652,7.9573,125.67,125.62,27.8615]
[1725653107961,9.4584158,125.71,125.63,7.9598]
[1725653108328,7.9561,125.69,125.63,7.9598]
[1725653109934,9.4584158,125.71,125.62,19.9011]
[1725653109935,7.9573,125.68,125.62,19.9011]
[1725653110159,7.956,125.7,125.63,7.9598]
[1725653110654,9.4584158,125.71,125.63,7.9598]
[1725653110655,7.956,125.69,125.63,7.9598]
[1725653110858,9.4584158,125.71,125.63,7.9598]
[1725653110859,7.9554,125.7,125.63,1.59143288]
[1725653111057,9.4584158,125.71,125.65,7.9586]
[1725653111281,47.6307,125.78,125.65,1.59133276]
[1725653111559,7.9541,125.73,125.67,7.9567]
[1725653111737,8.97540346,125.73,125.65,1.44493809]
[1725653111931,7.9566,125.69,125.65,1.44493809]
[1725653112859,7.9573,125.67,125.65,1.44493809]
[1725653113327,45.0,125.68,125.65,1.44493809]
[1725653113536,7.9575,125.67,125.65,1.44493809]
[1725653114159,52.9568,125.68,125.65,1.44493809]
[1725653114357,7.9573,125.67,125.65,1.44493809]
[1725653114547,7.9579,125.66,125.65,1.44493809]
[1725653114873,52.9579,125.66,125.65,1.44493809]
[1725653115233,7.9574,125.67,125.65,1.44493809]
[1725653115437,303.9,125.69,125.65,1.44493809]
[1725653115642,45.0,125.68,125.65,1.44493809]
[1725653116234,303.9,125.69,125.65,1.44493809]
[1725653116553,303.9,125.69,125.65,9.40343809]
[1725653118171,303.9,125.69,125.66,7.9574]
[1725653118656,303.9,125.69,125.65,1.44493809]
[1725653118870,311.8561,125.69,125.65,1.44493809]
[1725653119046,303.9,125.69,125.65,9.40333809]
[1725653119357,9.4584158,125.74,125.68,7.9567]
[1725653119565,19.8814,125.75,125.68,7.9567]
[1725653119759,7.9543,125.72,125.67,27.8503]
[1725653120650,7.9537,125.73,125.68,7.9565]
[1725653121364,8.1755,125.77,125.69,19.8897]
[1725653121365,7.9529,125.74,125.69,19.8897]
[1725653121658,8.1755,125.77,125.69,19.8897]
[1725653121859,8.1755,125.77,125.7,7.9553]
[1725653122067,7.9535,125.74,125.69,27.8455]
[1725653123363,9.4584158,125.77,125.69,19.8897]
[1725653123542,7.9518,125.76,125.71,7.9543]
[1725653123943,7.9523,125.75,125.7,7.9553]
[1725653124242,7.9523,125.75,125.71,7.9546]
[1725653124850,7.9516,125.76,125.72,7.9541]
[1725653125755,7.9512,125.77,125.73,7.9533]
[1725653126305,7.9512,125.77,125.72,7.9541]
[1725653126438,7.9517,125.76,125.71,19.8865]
[1725653126642,7.9517,125.76,125.71,21.33143809]
[1725653127140,8.1981,125.8,125.71,22.92197551]
[1725653127342,323.7724,125.81,125.73,19.8834]
[1725653127546,7.9508,125.78,125.73,19.8834]
[1725653127850,7.9511,125.77,125.73,27.8368]
[1725653128353,7.9505,125.78,125.73,27.8368]
[1725653128560,7.9511,125.77,125.73,49.6281]
[1725653129067,29.3308158,125.81,125.73,49.6281]
[1725653129068,7.9509,125.78,125.73,49.6281]
[1725653129566,7.9511,125.77,125.73,41.6747]
[1725653130450,7.9511,125.77,125.73,49.6281]
[1725653130751,29.3308158,125.81,125.71,1.44493809]
[1725653130752,7.953,125.74,125.71,1.44493809]
[1725653131257,7.9541,125.72,125.71,1.44493809]
[1725653131780,52.9541,125.72,125.71,1.44493809]
[1725653134294,72.9541,125.72,125.71,1.44493809]
[1725653134755,52.9541,125.72,125.71,1.44493809]
[1725653136894,7.9536,125.73,125.71,1.44493809]
[1725653139477,7.9541,125.72,125.71,1.44493809]
[1725653139867,52.9541,125.72,125.71,1.44493809]
[1725653143791,45.0,125.72,125.71,1.44493809]
[1725653143967,52.9541,125.72,125.71,1.44493809]
[1725653144984,7.9537,125.73,125.71,1.44493809]
[1725653145205,7.9541,125.72,125.71,1.44493809]
[1725653146082,27.9541,125.72,125.71,1.44493809]
[1725653146306,72.9541,125.72,125.71,1.44493809]
[1725653146812,72.9541,125.72,125.69,1.44493809]
[1725653146813,72.9541,125.72,125.69,10.23649013]
[1725653146814,7.9554,125.7,125.69,10.23649013]
[1725653147108,35.8361,125.7,125.69,9.68e-06]
[1725653147310,90.2945158,125.7,125.69,9.68e-06]
[1725653148392,80.8361,125.7,125.69,9.68e-06]
[1725653150685,7.9586,125.65,125.61,40.7394]
[1725653151396,7.9583,125.66,125.61,48.7004]
[1725653151904,323.7906,125.69,125.63,7.9598]
[1725653151905,7.9574,125.67,125.63,7.9598]
[1725653152303,303.9,125.69,125.61,22.4286354]
[1725653152487,303.9,125.69,125.65,27.8539]
[1725653153296,303.9,125.69,125.66,7.9578]
[1725653153611,303.9,125.69,125.65,19.8955]
[1725653153995,303.9,125.72,125.65,19.8955]
[1725653154194,303.9,125.72,125.62,19.9001]
[1725653154195,19.8875,125.71,125.62,19.9001]
[1725653154512,7.9568,125.68,125.62,19.9001]
[1725653154696,7.9565,125.69,125.64,7.9587]
[1725653155017,7.9556,125.7,125.65,7.9585]
[1725653155715,7.9556,125.7,125.61,20.837]
[1725653155716,7.955,125.71,125.66,27.8522]
[1725653156587,7.9555,125.7,125.66,27.8522]
[1725653156930,323.7859,125.72,125.63,19.8987]
[1725653157214,7.9562,125.69,125.64,7.959]
[1725653157423,7.9562,125.69,125.65,7.9585]
[1725653157786,7.9556,125.7,125.66,7.9579]
[1725653158183,52.955,125.71,125.67,7.9573]
[1725653158417,7.955,125.71,125.65,19.8962]
[1725653158715,7.955,125.71,125.66,7.9579]
[1725653159218,303.9,125.72,125.62,19.8999]
[1725653159419,7.9563,125.69,125.64,7.959]
[1725653159919,64.8878,125.71,125.62,27.8598]
[1725653160086,7.9568,125.68,125.62,19.8999]
[1725653160286,368.7878,125.71,125.61,20.837]
[1725653160287,348.9,125.71,125.61,20.837]
[1725653160489,8.3277,125.68,125.56,21.5454]
[1725653160709,7.9612,125.61,125.56,29.5092]
[1725653160899,7.9619,125.6,125.56,21.5454]
[1725653161532,19.8989,125.64,125.56,21.5454]
[1725653161689,45.0,125.63,125.56,21.5454]
[1725653162017,7.9618,125.6,125.56,21.5454]
[1725653162231,52.9604,125.63,125.58,7.963]
[1725653162717,52.9604,125.63,125.57,19.9087]
[1725653162718,45.0,125.63,125.59,7.9619]
[1725653162920,303.9,125.66,125.57,1.59217569]
[1725653163125,311.8581,125.66,125.57,1.59217569]
[1725653163323,7.9587,125.65,125.61,27.8633]
[1725653163708,303.9,125.66,125.63,7.9592]
[1725653163907,7.9571,125.68,125.63,7.9592]
[1725653164222,17.3989158,125.71,125.64,7.9592]
[1725653164223,7.9562,125.69,125.64,7.9592]
[1725653164391,17.3989158,125.71,125.63,27.8584]
[1725653164392,7.9574,125.67,125.63,27.8584]
[1725653165018,7.9571,125.68,125.64,7.9592]
[1725653165207,7.9571,125.68,125.63,27.8589]
[1725653167014,2.17666213,125.71,125.65,19.8956]
[1725653167218,19.8849,125.73,125.65,19.8956]
[1725653167421,19.8884,125.71,125.63,21.2075]
[1725653167720,19.8884,125.71,125.62,28.5963]
[1725653167721,7.9585,125.66,125.62,19.9005]
[1725653167903,19.8909,125.69,125.59,49.372]
[1725653168106,7.9596,125.64,125.59,49.372]
[1725653168423,7.958,125.66,125.61,19.9024]
[1725653168616,7.958,125.66,125.61,27.8634]
[1725653169531,7.9593,125.64,125.59,37.4286]
[1725653169699,7.9593,125.64,125.59,29.1697]
[1725653170640,28.566,125.67,125.58,19.9065]
[1725653170821,7.9612,125.61,125.57,7.9632]
[1725653171133,19.9004,125.63,125.54,7.9651]
[1725653171299,7.9631,125.58,125.53,37.4324]
[1725653171502,323.8004,125.63,125.53,37.4324]
[1725653171503,7.9637,125.57,125.53,21.2075]